bitfinex/quotes_BTCUSD_20260127
["timestamp","ask_amount","ask_price","bid_price","bid_amount"]
[1769495799899,0.11292504,88422.0,88382.0,0.16768468]
[1769495800129,0.11292504,88421.0,88382.0,0.16768468]
[1769495800349,0.11292504,88420.0,88383.0,0.01999727]
[1769495800563,0.11292504,88419.0,88383.0,0.01999727]
[1769495800776,0.08299916,88423.0,88383.0,0.02029427]
[1769495800994,0.03161895,88426.0,88383.0,0.02059127]
[1769495801203,0.03161895,88426.0,88384.0,0.02202669]
[1769495802842,0.03161895,88426.0,88384.0,0.02253579]
[1769495808780,0.03161895,88426.0,88384.0,0.02221738]
[1769495811795,0.07269879,88425.0,88384.0,0.0005091]
[1769495811990,0.01131272,88396.0,88384.0,0.0005091]
[1769495812194,0.01131247,88398.0,88384.0,0.0005091]
[1769495812666,0.01131234,88399.0,88384.0,0.0005091]
[1769495812803,0.01131221,88400.0,88384.0,0.0005091]
[1769495813018,0.00904965,88400.0,88384.0,0.0005091]
[1769495813249,0.0113117,88404.0,88384.0,0.0005091]
[1769495814123,0.01131196,88402.0,88384.0,0.0005091]
[1769495814836,0.01131208,88401.0,88384.0,0.0005091]
[1769495815050,0.06787202,88402.0,88384.0,0.0005091]
[1769495815180,0.01131208,88401.0,88384.0,0.0005091]
[1769495815384,0.01131208,88401.0,88384.0,0.00019066]
[1769495820247,0.01131234,88399.0,88384.0,0.00019066]
[1769495820457,0.0203621,88399.0,88384.0,0.00019066]
[1769495820657,0.01131234,88399.0,88384.0,0.00019066]
[1769495821087,0.01131247,88398.0,88384.0,0.00019066]
[1769495821637,0.22623548,88404.0,88384.0,0.00019066]
[1769495821638,0.01131208,88411.0,88384.0,0.00019066]
[1769495821860,0.11276652,88410.0,88384.0,0.00019066]
[1769495822084,0.11276652,88409.0,88384.0,0.00019066]
[1769495822304,0.11276652,88408.0,88384.0,0.00019066]
[1769495822536,0.03397521,88415.0,88384.0,0.00019066]
[1769495822765,0.01131132,88407.0,88384.0,0.00019066]
[1769495822969,0.01131144,88406.0,88384.0,0.00019066]
[1769495823188,0.01131157,88405.0,88384.0,0.00019066]
[1769495823436,0.0113117,88404.0,88384.0,0.00019066]
[1769495823660,0.01131183,88403.0,88384.0,0.00019066]
[1769495823853,0.0113117,88404.0,88384.0,0.00019066]
[1769495824056,0.01131144,88406.0,88384.0,0.00019066]
[1769495824832,0.01131157,88405.0,88384.0,0.00019066]
[1769495825036,0.0113117,88404.0,88384.0,0.00019066]
[1769495825453,0.01131196,88402.0,88384.0,0.00019066]
[1769495825653,0.01131183,88403.0,88384.0,0.00019066]
[1769495826827,0.01131196,88402.0,88384.0,0.00019066]
[1769495828316,0.01131183,88403.0,88384.0,0.00019066]
[1769495828574,0.01131183,88403.0,88384.0,0.03799639]
[1769495828756,0.01131196,88402.0,88384.0,0.03799639]
[1769495828929,0.01131183,88403.0,88384.0,0.03799639]
[1769495829366,0.0113117,88404.0,88384.0,0.03799639]
[1769495829564,0.01131183,88403.0,88384.0,0.03799639]
[1769495829787,0.0113117,88404.0,88384.0,0.00019066]
[1769495830150,0.01131196,88402.0,88384.0,0.00019066]
[1769495831508,0.01131183,88403.0,88384.0,0.00019066]
[1769495833023,0.01131196,88402.0,88384.0,0.00019066]
[1769495833275,0.01131208,88401.0,88385.0,0.05256573]
[1769495833489,0.01131183,88403.0,88384.0,0.00019066]
[1769495833894,0.01131196,88402.0,88384.0,0.00019066]
[1769495834149,0.01131183,88403.0,88384.0,0.00019066]
[1769495834911,0.0113117,88404.0,88384.0,0.00019066]
[1769495835113,0.01131144,88406.0,88384.0,0.00019066]
[1769495835350,0.01131157,88405.0,88385.0,0.05256573]
[1769495836262,0.01131157,88405.0,88385.0,0.05275639]
[1769495836486,0.0113117,88404.0,88385.0,0.05275639]
[1769495837795,0.01131183,88403.0,88385.0,0.05275639]
[1769495838001,0.0113117,88404.0,88385.0,0.05275639]
[1769495838211,0.0113117,88404.0,88386.0,0.04306231]
[1769495838384,0.01131144,88406.0,88386.0,0.04306231]
[1769495839189,0.01131144,88406.0,88386.0,0.04325297]
[1769495839396,0.01131157,88405.0,88386.0,0.04325297]
[1769495839734,0.01131196,88402.0,88387.0,0.04736854]
[1769495839912,0.01131183,88403.0,88387.0,0.04736854]
[1769495840113,0.01131183,88403.0,88387.0,0.0475592]
[1769495840284,0.01131196,88402.0,88387.0,0.00019066]
[1769495840484,0.06787185,88402.0,88387.0,0.00019066]
[1769495840888,0.01131208,88401.0,88387.0,0.00019066]
[1769495841193,0.01131298,88394.0,88381.0,0.0001759]
[1769495841609,0.01131285,88395.0,88381.0,0.0001759]
[1769495842507,0.01131272,88396.0,88381.0,0.0001759]
[1769495843217,0.01131234,88399.0,88381.0,0.0001759]
[1769495843369,0.01131272,88396.0,88381.0,0.0001759]
[1769495843733,0.01131285,88395.0,88381.0,0.0001759]
[1769495843938,0.01131272,88396.0,88381.0,0.0001759]
[1769495844152,0.03474881,88396.0,88381.0,0.0001759]
[1769495845318,0.02343609,88396.0,88381.0,0.0001759]
[1769495846253,0.02343609,88396.0,88382.0,0.2298301]
[1769495846990,0.02343609,88396.0,88384.0,0.2298301]
[1769495852168,0.02343609,88404.0,88385.0,0.02326538]
[1769495852410,0.02343609,88404.0,88386.0,0.2298301]
[1769495852633,0.0113117,88404.0,88386.0,0.2298301]
[1769495852923,0.02343609,88402.0,88386.0,0.2298301]
[1769495853197,0.02343609,88402.0,88385.0,0.02326538]
[1769495853198,0.01131196,88402.0,88388.0,0.2298301]
[1769495853400,0.02343609,88401.0,88388.0,0.2298301]
[1769495853508,0.01131221,88400.0,88388.0,0.2298301]
[1769495853720,0.01131285,88395.0,88388.0,0.20594056]
[1769495853935,0.0113126,88397.0,88388.0,0.20594056]
[1769495854434,0.01131247,88398.0,88388.0,0.20594056]
[1769495854642,0.0113126,88397.0,88388.0,0.20594056]
[1769495854857,0.01131247,88398.0,88388.0,0.20594056]
[1769495855305,0.0113126,88397.0,88388.0,0.20594056]
[1769495855969,0.03474843,88399.0,88388.0,0.20594056]
[1769495856172,0.02343609,88399.0,88388.0,0.20594056]
[1769495856370,0.03474843,88399.0,88388.0,0.20594056]
[1769495857111,0.02343609,88399.0,88388.0,0.20594056]
[1769495857471,0.03474843,88399.0,88388.0,0.20594056]
[1769495858305,0.01131247,88398.0,88388.0,0.20594056]
[1769495858700,0.0113126,88397.0,88388.0,0.20594056]
[1769495858957,0.01131247,88398.0,88388.0,0.20594056]
[1769495859218,0.03474843,88399.0,88388.0,0.20594056]
[1769495859436,0.02343609,88399.0,88388.0,0.20594056]
[1769495859956,0.03474843,88399.0,88388.0,0.20594056]
[1769495860703,0.01131247,88398.0,88388.0,0.20594056]
[1769495861247,0.0113126,88397.0,88388.0,0.20594056]
[1769495863055,0.01131272,88396.0,88388.0,0.20594056]
[1769495863287,0.02343609,88392.0,88382.0,0.22505219]
[1769495864219,0.01131311,88393.0,88382.0,0.22505219]
[1769495864743,0.01131298,88394.0,88382.0,0.22505219]
[1769495865548,0.01131311,88393.0,88382.0,0.22505219]
[1769495865794,0.01131285,88395.0,88382.0,0.22505219]
[1769495866021,0.01131298,88394.0,88382.0,0.22505219]
[1769495867348,0.01131311,88393.0,88382.0,0.22505219]
[1769495868437,0.01131324,88392.0,88382.0,0.22505219]
[1769495869564,0.01131311,88393.0,88382.0,0.22505219]
[1769495871715,0.01131324,88392.0,88382.0,0.22505219]
[1769495871927,0.01131311,88393.0,88382.0,0.22505219]
[1769495873256,0.01131324,88392.0,88382.0,0.22505219]
[1769495874519,0.01131311,88393.0,88382.0,0.22505219]
[1769495874932,0.01131298,88394.0,88382.0,0.22505219]
[1769495875074,0.01131311,88393.0,88382.0,0.22505219]
[1769495877761,0.01131311,88393.0,88383.0,0.03640193]
[1769495877963,0.01131311,88393.0,88384.0,0.22505219]
[1769495881835,0.05656305,88397.0,88384.0,0.22505219]
[1769495882078,0.01131234,88399.0,88384.0,0.22505219]
[1769495882296,0.01131221,88400.0,88386.0,0.22505219]
[1769495882494,0.01131234,88399.0,88386.0,0.22505219]
[1769495882901,0.01131247,88398.0,88386.0,0.22505219]
[1769495883113,0.01131234,88399.0,88386.0,0.22505219]
[1769495883526,0.01131247,88398.0,88386.0,0.22505219]
[1769495883730,0.01131247,88398.0,88388.0,0.22505219]
[1769495884556,0.06787506,88398.0,88388.0,0.22505219]
[1769495884717,0.0113126,88397.0,88388.0,0.22505219]
[1769495885341,0.01131272,88396.0,88388.0,0.22505219]
[1769495888080,0.01131285,88395.0,88388.0,0.22505219]
[1769495888325,0.01131272,88396.0,88388.0,0.22505219]
[1769495888527,0.0113126,88397.0,88388.0,0.22505219]
[1769495888773,0.01131247,88398.0,88388.0,0.24418001]
[1769495889215,0.0113126,88397.0,88388.0,0.24418001]
[1769495889451,0.01131221,88400.0,88388.0,0.24418001]
[1769495889687,0.01616936,88402.0,88388.0,0.24418001]
[1769495889942,0.11825142,88405.0,88388.0,0.24418001]
[1769495890178,0.05656127,88400.0,88390.0,0.22505219]
[1769495890396,0.01131234,88399.0,88390.0,0.22505219]
[1769495890609,0.01131208,88401.0,88390.0,0.22505219]
[1769495890829,0.01131144,88406.0,88390.0,0.22505219]
[1769495891043,0.01131093,88410.0,88395.0,0.0272487]
[1769495891244,0.11298192,88409.0,88398.0,0.22505219]
[1769495891466,0.01131093,88410.0,88400.0,0.22505219]
[1769495892104,0.01131119,88408.0,88400.0,0.22505219]
[1769495893086,0.01131093,88410.0,88400.0,0.22505219]
[1769495893657,0.01131106,88409.0,88400.0,0.22505219]
[1769495895940,0.01131119,88408.0,88400.0,0.22505219]
[1769495896114,0.01131132,88407.0,88400.0,0.22505219]
[1769495897346,0.01131119,88408.0,88400.0,0.22505219]
[1769495897563,0.01131132,88407.0,88400.0,0.22505219]
[1769495897759,0.01131144,88406.0,88400.0,0.22505219]
[1769495898738,0.01131132,88407.0,88400.0,0.22505219]
[1769495899594,0.01131144,88406.0,88400.0,0.22505219]
[1769495900954,0.01131132,88407.0,88400.0,0.22505219]
[1769495901157,0.01131144,88406.0,88400.0,0.22505219]
[1769495902370,0.01131132,88407.0,88400.0,0.22505219]
[1769495905617,0.01131119,88408.0,88400.0,0.22505219]
[1769495905819,0.01131132,88407.0,88400.0,0.22505219]
[1769495905973,0.05655654,88408.0,88400.0,0.22505219]
[1769495906180,0.01131119,88408.0,88400.0,0.22505219]
[1769495907420,0.01131132,88407.0,88400.0,0.22505219]
[1769495908031,0.01131119,88408.0,88400.0,0.22505219]
[1769495909730,0.01131106,88409.0,88400.0,0.22505219]
[1769495910334,0.01131119,88408.0,88400.0,0.22505219]
[1769495912543,0.0113117,88404.0,88390.0,0.0001746]
[1769495912728,0.0113117,88404.0,88391.0,0.22505219]
[1769495913133,0.01131208,88401.0,88391.0,0.22505219]
[1769495913340,0.01131196,88402.0,88391.0,0.22505219]
[1769495913925,0.01131183,88403.0,88391.0,0.22505219]
[1769495915333,0.01131196,88402.0,88391.0,0.22505219]
[1769495917074,0.01131183,88403.0,88391.0,0.22505219]
[1769495919325,0.01131196,88402.0,88391.0,0.22505219]
[1769495919753,0.01131183,88403.0,88391.0,0.22505219]
[1769495920961,0.01131196,88402.0,88391.0,0.22505219]
[1769495921322,0.01131183,88403.0,88391.0,0.22505219]
[1769495921526,0.04534934,88403.0,88391.0,0.22505219]
[1769495923143,0.00549851,88402.0,88391.0,0.22505219]
[1769495923625,0.01131196,88402.0,88391.0,0.22505219]
[1769495923812,0.01131183,88403.0,88391.0,0.22505219]
[1769495924023,0.01131183,88403.0,88391.0,0.22518629]
[1769495924528,0.01131208,88401.0,88391.0,0.22518629]
[1769495924683,0.0565598,88402.0,88391.0,0.22518629]
[1769495924684,0.02366045,88399.0,88391.0,0.22518629]
[1769495924888,0.01131119,88408.0,88391.0,0.22518629]
[1769495925111,0.02366045,88406.0,88391.0,0.22518629]
[1769495925519,0.03497189,88406.0,88391.0,0.22518629]
[1769495925857,0.01131157,88405.0,88391.0,0.22518629]
[1769495926687,0.0113117,88404.0,88391.0,0.22518629]
[1769495929373,0.05655788,88406.0,88392.0,0.22505219]
[1769495929753,0.0113117,88404.0,88392.0,0.22505219]
[1769495930221,0.0113117,88404.0,88392.0,0.22518629]
[1769495931086,0.01131157,88405.0,88392.0,0.22518629]
[1769495933395,0.0113117,88404.0,88392.0,0.22518629]
[1769495934981,0.01131157,88405.0,88392.0,0.22518629]
[1769495936728,0.01131144,88406.0,88392.0,0.22518629]
[1769495936934,0.01131157,88405.0,88392.0,0.22518629]
[1769495937141,0.01131144,88406.0,88392.0,0.22518629]
[1769495938068,0.01131119,88408.0,88392.0,0.22518629]
[1769495939082,0.01131119,88408.0,88392.0,0.2501941]
[1769495939277,0.11298657,88407.0,88392.0,0.2501941]
[1769495939519,0.11298657,88406.0,88392.0,0.2501941]
[1769495939715,0.01131119,88408.0,88392.0,0.2501941]
[1769495939716,0.01131119,88408.0,88392.0,0.22518629]
[1769495939922,0.11298657,88407.0,88392.0,0.22518629]
[1769495940113,0.11298657,88406.0,88392.0,0.22518629]
[1769495940289,0.01131119,88408.0,88392.0,0.22518629]
[1769495940500,0.12429874,88407.0,88392.0,0.22518629]
[1769495940701,0.11298742,88406.0,88392.0,0.22518629]
[1769495940902,0.01131119,88408.0,88392.0,0.22518629]
[1769495941095,0.11298742,88407.0,88392.0,0.22518629]
[1769495941355,0.11298742,88406.0,88392.0,0.22518629]
[1769495941566,0.01131119,88408.0,88392.0,0.22518629]
[1769495941719,0.11298852,88407.0,88392.0,0.2501941]
[1769495942063,0.11298852,88406.0,88392.0,0.2501941]
[1769495942219,0.03473576,88409.0,88392.0,0.2501941]
[1769495942591,0.11299018,88408.0,88394.0,0.22505219]
[1769495942794,0.11299018,88407.0,88394.0,0.22505219]
[1769495942968,0.11299018,88406.0,88394.0,0.22505219]
[1769495943196,0.03473576,88409.0,88394.0,0.22518629]
[1769495943395,0.11299233,88408.0,88394.0,0.22518629]
[1769495943572,0.11299233,88407.0,88396.0,0.22505219]
[1769495943778,0.11299233,88406.0,88396.0,0.22505219]
[1769495943958,0.03473576,88409.0,88396.0,0.22505219]
[1769495944164,0.11299243,88408.0,88396.0,0.22505219]
[1769495944364,0.11299243,88407.0,88396.0,0.22505219]
[1769495944593,0.11299243,88406.0,88396.0,0.22505219]
[1769495944905,0.03473576,88409.0,88396.0,0.22505219]
[1769495945141,0.12430342,88408.0,88396.0,0.22505219]
[1769495945348,0.11299223,88407.0,88396.0,0.22505219]
[1769495945522,0.11299223,88406.0,88396.0,0.22505219]
[1769495945704,0.01131119,88408.0,88396.0,0.22505219]
[1769495945901,0.11299217,88407.0,88396.0,0.22505219]
[1769495946102,0.11299217,88406.0,88396.0,0.22505219]
[1769495946421,0.01131119,88408.0,88396.0,0.22505219]
[1769495946665,0.11299221,88407.0,88396.0,0.22505219]
[1769495946838,0.11299221,88406.0,88396.0,0.22505219]
[1769495946985,0.03473576,88409.0,88396.0,0.22505219]
[1769495947188,0.11299225,88408.0,88396.0,0.22505219]
[1769495947439,0.11299225,88407.0,88397.0,0.02529304]
[1769495947764,0.11299225,88407.0,88398.0,0.22505219]
[1769495947894,0.11299225,88406.0,88398.0,0.22505219]
[1769495948091,0.03473576,88409.0,88398.0,0.22505219]
[1769495948322,0.11299679,88408.0,88398.0,0.22505219]
[1769495948642,0.11299679,88407.0,88398.0,0.22505219]
[1769495948818,0.11299679,88406.0,88398.0,0.22505219]
[1769495949025,0.01131132,88407.0,88398.0,0.22505219]
[1769495949274,0.11299677,88406.0,88398.0,0.22505219]
[1769495949407,0.01131132,88407.0,88398.0,0.22505219]
[1769495949607,0.11299677,88406.0,88398.0,0.22505219]
[1769495949851,0.01131119,88408.0,88398.0,0.22505219]
[1769495950054,0.11299674,88407.0,88398.0,0.22505219]
[1769495950262,0.11299674,88406.0,88398.0,0.22505219]
[1769495950464,0.01131119,88408.0,88398.0,0.22505219]
[1769495950799,0.11299681,88407.0,88398.0,0.22505219]
[1769495950994,0.11299681,88406.0,88398.0,0.22505219]
[1769495951297,0.03473576,88409.0,88398.0,0.22505219]
[1769495951577,0.12430809,88408.0,88398.0,0.22505219]
[1769495951786,0.1129969,88407.0,88398.0,0.22505219]
[1769495951997,0.1129969,88406.0,88398.0,0.22505219]
[1769495952157,0.01131119,88408.0,88398.0,0.22505219]
[1769495952361,0.1129969,88407.0,88398.0,0.22505219]
[1769495952564,0.1129969,88406.0,88398.0,0.22505219]
[1769495952763,0.03473576,88409.0,88398.0,0.22505219]
[1769495952980,0.11299688,88408.0,88398.0,0.22505219]
[1769495953177,0.11299688,88407.0,88398.0,0.22505219]
[1769495953533,0.11299688,88406.0,88398.0,0.22505219]
[1769495953648,0.03473576,88409.0,88398.0,0.22505219]
[1769495953854,0.11299696,88408.0,88398.0,0.22505219]
[1769495954124,0.11299696,88407.0,88398.0,0.22505219]
[1769495954329,0.03473576,88409.0,88398.0,0.22505219]
[1769495954330,0.11299696,88406.0,88398.0,0.22505219]
[1769495954530,0.03473576,88409.0,88398.0,0.22505219]
[1769495954728,0.11299705,88408.0,88398.0,0.22505219]
[1769495954940,0.11299705,88407.0,88398.0,0.22505219]
[1769495955164,0.11299705,88406.0,88398.0,0.22505219]
[1769495955369,0.0234247,88409.0,88398.0,0.22505219]
[1769495955510,0.12430838,88408.0,88398.0,0.22505219]
[1769495955709,0.11299719,88407.0,88398.0,0.22505219]
[1769495955912,0.11299719,88406.0,88398.0,0.22505219]
[1769495956114,0.03473576,88409.0,88398.0,0.22505219]
[1769495956348,0.12430831,88408.0,88398.0,0.22505219]
[1769495956553,0.11299712,88407.0,88398.0,0.22505219]
[1769495956782,0.11299712,88406.0,88398.0,0.22505219]
[1769495957092,0.01131119,88408.0,88398.0,0.22505219]
[1769495957299,0.11299723,88407.0,88398.0,0.22505219]
[1769495957498,0.11299723,88406.0,88398.0,0.22505219]
[1769495957801,0.11299723,88405.0,88398.0,0.22505219]
[1769495958001,0.01131119,88408.0,88398.0,0.22505219]
[1769495958202,0.11299709,88407.0,88398.0,0.22505219]
[1769495958427,0.11299709,88406.0,88398.0,0.22505219]
[1769495958638,0.11299709,88405.0,88398.0,0.22505219]
[1769495958845,0.01131119,88408.0,88398.0,0.22505219]
[1769495958988,0.11299754,88407.0,88398.0,0.22505219]
[1769495959213,0.11299754,88406.0,88398.0,0.22505219]
[1769495959434,0.11299754,88405.0,88398.0,0.22505219]
[1769495959637,0.03473576,88409.0,88398.0,0.22505219]
[1769495959860,0.11299791,88408.0,88398.0,0.22505219]
[1769495960059,0.11299791,88407.0,88398.0,0.22505219]
[1769495960261,0.11299791,88406.0,88398.0,0.22505219]
[1769495960472,0.11299791,88405.0,88398.0,0.22505219]
[1769495960677,0.01131119,88408.0,88398.0,0.22505219]
[1769495960881,0.11299798,88407.0,88398.0,0.22505219]
[1769495961122,0.11299798,88406.0,88398.0,0.22505219]
[1769495961419,0.11299798,88405.0,88398.0,0.22505219]
[1769495961575,0.01131119,88408.0,88398.0,0.22505219]
[1769495961576,0.01131132,88407.0,88398.0,0.22505219]
[1769495961775,0.11299792,88406.0,88398.0,0.22505219]
[1769495961977,0.11299792,88405.0,88398.0,0.22505219]
[1769495962178,0.01131132,88407.0,88398.0,0.22505219]
[1769495962405,0.11299784,88406.0,88398.0,0.22505219]
[1769495962599,0.11299784,88405.0,88398.0,0.22505219]
[1769495962803,0.01131132,88407.0,88398.0,0.22505219]
[1769495963011,0.11299784,88406.0,88398.0,0.22505219]
[1769495963211,0.11299784,88405.0,88398.0,0.22505219]
[1769495963442,0.01131119,88408.0,88398.0,0.22505219]
[1769495963616,0.12430917,88407.0,88398.0,0.22505219]
[1769495963809,0.11299785,88406.0,88398.0,0.22505219]
[1769495964046,0.11299785,88405.0,88398.0,0.22505219]
[1769495964271,0.01131119,88408.0,88398.0,0.22505219]
[1769495964427,0.1129978,88407.0,88398.0,0.22505219]
[1769495964589,0.1129978,88406.0,88398.0,0.22505219]
[1769495964785,0.1129978,88405.0,88398.0,0.22505219]
[1769495964998,0.0234247,88409.0,88398.0,0.22505219]
[1769495965198,0.11299785,88408.0,88398.0,0.22505219]
[1769495965396,0.11299785,88407.0,88398.0,0.22505219]
[1769495965598,0.11299785,88406.0,88398.0,0.22505219]
[1769495965817,0.11299785,88405.0,88398.0,0.22505219]
[1769495966152,0.03473576,88409.0,88398.0,0.22505219]
[1769495966335,0.12430905,88408.0,88398.0,0.22505219]
[1769495966661,0.11299786,88407.0,88398.0,0.22505219]
[1769495966815,0.11299786,88406.0,88398.0,0.22505219]
[1769495967022,0.11299786,88405.0,88398.0,0.22505219]
[1769495967338,0.01131119,88408.0,88398.0,0.22505219]
[1769495967546,0.11299777,88407.0,88398.0,0.22505219]
[1769495967889,0.02468977,88405.0,88398.0,0.21905219]
[1769495970066,0.02468977,88405.0,88398.0,0.24097082]
[1769495970269,0.01131106,88409.0,88398.0,0.24097082]
[1769495970464,0.11300522,88408.0,88398.0,0.24097082]
[1769495970669,0.01131055,88413.0,88398.0,0.24097082]
[1769495970670,0.06786389,88413.0,88398.0,0.24097082]
[1769495970960,0.11300627,88411.0,88398.0,0.24097082]
[1769495971159,0.11300627,88410.0,88398.0,0.24097082]
[1769495971477,0.11300627,88409.0,88399.0,0.02656478]
[1769495971681,0.11300627,88408.0,88400.0,0.22385219]
[1769495971890,0.0113108,88411.0,88400.0,0.22385219]
[1769495972066,0.11299971,88410.0,88400.0,0.22385219]
[1769495972269,0.11299971,88409.0,88400.0,0.22385219]
[1769495972471,0.11299971,88408.0,88400.0,0.22385219]
[1769495972679,0.0113108,88411.0,88400.0,0.22385219]
[1769495972872,0.0113108,88411.0,88395.0,0.0001341]
[1769495972873,0.11299633,88410.0,88402.0,0.14394695]
[1769495973070,0.0113108,88411.0,88402.0,0.03061645]
[1769495973275,0.1129965,88410.0,88395.0,0.0001341]
[1769495973474,0.0113108,88411.0,88396.0,0.17908176]
[1769495973695,0.11299319,88410.0,88396.0,0.17908176]
[1769495973873,0.0113108,88411.0,88396.0,0.17908176]
[1769495974074,0.11299323,88410.0,88396.0,0.17908176]
[1769495974269,0.01131042,88414.0,88396.0,0.17908176]
[1769495974478,0.12430212,88413.0,88396.0,0.17908176]
[1769495974744,0.11299157,88412.0,88396.0,0.17908176]
[1769495975114,0.12430225,88412.0,88396.0,0.17908176]
[1769495975344,0.11299157,88411.0,88396.0,0.17908176]
[1769495975536,0.11299157,88410.0,88396.0,0.17908176]
[1769495975709,0.01131055,88413.0,88396.0,0.19945763]
[1769495975919,0.11298962,88412.0,88396.0,0.19945763]
[1769495976114,0.11298962,88411.0,88396.0,0.19945763]
[1769495976317,0.02081141,88415.0,88396.0,0.02037587]
[1769495976517,0.01131042,88414.0,88397.0,0.17908176]
[1769495977391,0.01131055,88413.0,88400.0,0.02454288]
[1769495977586,0.01131055,88413.0,88401.0,0.17908176]
[1769495977927,0.01131042,88414.0,88401.0,0.17908176]
[1769495978302,0.01131068,88412.0,88401.0,0.17908176]
[1769495978506,0.0113108,88411.0,88401.0,0.17908176]
[1769495981175,0.01131068,88412.0,88401.0,0.17908176]
[1769495981920,0.0113108,88411.0,88401.0,0.17908176]
[1769495982869,0.01131068,88412.0,88401.0,0.17908176]
[1769495985013,0.01131042,88414.0,88401.0,0.17908176]
[1769495985433,0.01131055,88413.0,88401.0,0.17908176]
[1769495987076,0.01131042,88414.0,88401.0,0.17908176]
[1769495987229,0.01131055,88413.0,88401.0,0.17908176]
[1769495987442,0.01131068,88412.0,88401.0,0.17908176]
[1769495988143,0.06786264,88414.0,88401.0,0.17908176]
[1769495988144,0.01131042,88414.0,88401.0,0.17908176]
[1769495988259,0.01131055,88413.0,88401.0,0.17908176]
[1769495988462,0.11298751,88412.0,88401.0,0.17908176]
[1769495988744,0.11298751,88411.0,88401.0,0.17908176]
[1769495989016,0.11298751,88410.0,88401.0,0.17908176]
[1769495989319,0.11298751,88409.0,88401.0,0.17908176]
[1769495989526,0.11298751,88408.0,88401.0,0.17908176]
[1769495989694,0.01131068,88412.0,88401.0,0.17908176]
[1769495989910,0.12429885,88411.0,88401.0,0.17908176]
[1769495990135,0.11298805,88410.0,88401.0,0.17908176]
[1769495990307,0.11298805,88409.0,88401.0,0.17908176]
[1769495990640,0.01131055,88413.0,88401.0,0.17908176]
[1769495990838,0.12429935,88412.0,88401.0,0.17908176]
[1769495990999,0.11298867,88411.0,88401.0,0.17908176]
[1769495991203,0.11298867,88410.0,88401.0,0.17908176]
[1769495991413,0.11298867,88409.0,88401.0,0.17908176]
[1769495991597,0.01131055,88413.0,88401.0,0.17908176]
[1769495991793,0.11298941,88412.0,88401.0,0.17908176]
[1769495992021,0.11298941,88411.0,88401.0,0.17908176]
[1769495992222,0.11298941,88410.0,88401.0,0.17908176]
[1769495992424,0.11298941,88409.0,88401.0,0.17908176]
[1769495992637,0.01131055,88413.0,88401.0,0.17908176]
[1769495992879,0.12430671,88412.0,88401.0,0.17908176]
[1769495993054,0.11299603,88411.0,88401.0,0.17908176]
[1769495993431,0.11299603,88410.0,88401.0,0.17908176]
[1769495993682,0.11299603,88409.0,88401.0,0.17908176]
[1769495993857,0.01131055,88413.0,88401.0,0.17908176]
[1769495994105,0.11299751,88412.0,88401.0,0.17908176]
[1769495994412,0.11299751,88411.0,88401.0,0.17908176]
[1769495994616,0.11299751,88410.0,88401.0,0.17908176]
[1769495994822,0.11299751,88409.0,88401.0,0.17908176]
[1769495995018,0.01131055,88413.0,88401.0,0.17908176]
[1769495995169,0.11299856,88412.0,88401.0,0.17908176]
[1769495995372,0.11299856,88411.0,88401.0,0.17908176]
[1769495995574,0.11299856,88410.0,88401.0,0.17908176]
[1769495995777,0.11299856,88409.0,88401.0,0.17908176]
[1769495995978,0.01131068,88412.0,88401.0,0.17908176]
[1769495996221,0.11299987,88411.0,88401.0,0.17908176]
[1769495996425,0.11299987,88410.0,88401.0,0.17908176]
[1769495996759,0.11299987,88409.0,88401.0,0.17908176]
[1769495996963,0.01131055,88413.0,88401.0,0.17908176]
[1769495997167,0.11300224,88412.0,88401.0,0.17908176]
[1769495997436,0.11300224,88411.0,88401.0,0.17908176]
[1769495997618,0.11300224,88410.0,88401.0,0.17908176]
[1769495997799,0.11300224,88409.0,88401.0,0.17908176]
[1769495998001,0.01131055,88413.0,88401.0,0.17908176]
[1769495998222,0.11300657,88412.0,88401.0,0.17908176]
[1769495998400,0.11300657,88411.0,88401.0,0.17908176]
[1769495998735,0.11300657,88410.0,88401.0,0.17908176]
[1769495998934,0.11300657,88409.0,88401.0,0.17908176]
[1769495999142,0.01131055,88413.0,88401.0,0.17908176]
[1769495999317,0.11301607,88412.0,88401.0,0.17908176]
[1769495999487,0.11301607,88411.0,88401.0,0.17908176]
[1769495999692,0.01131055,88413.0,88401.0,0.17908176]
[1769495999693,0.11301607,88410.0,88401.0,0.17908176]
[1769495999915,0.11301607,88409.0,88401.0,0.17908176]
[1769496000116,0.01131055,88413.0,88401.0,0.17908176]
[1769496000292,0.11303179,88412.0,88401.0,0.17908176]
[1769496000495,0.11303179,88411.0,88401.0,0.17908176]
[1769496000777,0.11303179,88410.0,88401.0,0.17908176]
[1769496000946,0.11303179,88409.0,88401.0,0.17908176]
[1769496001152,0.01131042,88414.0,88401.0,0.17908176]
[1769496001358,0.12434193,88413.0,88401.0,0.17908176]
[1769496001562,0.11303138,88412.0,88401.0,0.17908176]
[1769496001789,0.11303138,88411.0,88401.0,0.17908176]
[1769496001974,0.11303138,88410.0,88401.0,0.17908176]
[1769496002175,0.11303138,88409.0,88401.0,0.17908176]
[1769496002382,0.01131068,88412.0,88401.0,0.17908176]
[1769496002567,0.01131068,88412.0,88401.0,0.15439199]
[1769496002568,0.01131093,88410.0,88401.0,0.15439199]
[1769496002916,0.01131106,88409.0,88401.0,0.15439199]
[1769496003120,0.01131093,88410.0,88401.0,0.15439199]
[1769496003264,0.0113108,88411.0,88401.0,0.15439199]
[1769496003461,0.12434471,88410.0,88401.0,0.15439199]
[1769496003828,0.01131106,88409.0,88401.0,0.15439199]
[1769496004803,0.01131093,88410.0,88401.0,0.15439199]
[1769496005275,0.01131106,88409.0,88401.0,0.15439199]
[1769496005635,0.0113108,88411.0,88401.0,0.15439199]
[1769496005838,0.12434381,88410.0,88401.0,0.15439199]
[1769496006017,0.01131093,88410.0,88401.0,0.15439199]
[1769496006217,0.01131068,88412.0,88401.0,0.15439199]
[1769496006426,0.11303248,88411.0,88401.0,0.15439199]
[1769496006628,0.11303248,88410.0,88401.0,0.15439199]
[1769496006827,0.01131068,88412.0,88401.0,0.15439199]
[1769496007026,0.11303248,88411.0,88401.0,0.15439199]
[1769496007202,0.11303248,88410.0,88401.0,0.15439199]
[1769496007425,0.0113108,88411.0,88401.0,0.15439199]
[1769496007626,0.11303195,88410.0,88401.0,0.15439199]
[1769496007849,0.01131068,88412.0,88401.0,0.15439199]
[1769496008151,0.113032,88411.0,88401.0,0.15439199]
[1769496008331,0.113032,88410.0,88401.0,0.15439199]
[1769496008699,0.02258376,88413.0,88401.0,0.15439199]
[1769496008871,0.11303149,88412.0,88401.0,0.15439199]
[1769496009134,0.11303149,88411.0,88401.0,0.15439199]
[1769496009323,0.11303149,88410.0,88401.0,0.15439199]
[1769496009445,0.03389431,88413.0,88401.0,0.15439199]
[1769496009664,0.11303112,88412.0,88401.0,0.15439199]
[1769496009866,0.11303112,88411.0,88401.0,0.15439199]
[1769496010066,0.11303112,88410.0,88401.0,0.15439199]
[1769496010442,0.01131068,88412.0,88401.0,0.15439199]
[1769496010617,0.11303113,88411.0,88401.0,0.15439199]
[1769496010820,0.11303113,88410.0,88401.0,0.15439199]
[1769496011021,0.01131068,88412.0,88401.0,0.15439199]
[1769496011200,0.11303118,88411.0,88401.0,0.15439199]
[1769496011404,0.11303118,88410.0,88401.0,0.15439199]